[Event "Titled Tuesday Blitz January 03 Late 2023"]
[White "Dinu, Dumitru-Daniel"]
[Black "Marcolino, Daniel Mattos"]
[WhiteFideId "1208403"]
[BlackFideId "2106841"]
[WhiteElo "2203"]
[BlackElo "2006"]
[Result "1-0"]
[Round "03"]
[TimeControl "180+2"]
[Date "2023.01.03"]
[WhiteClock "0:00:16"]
[BlackClock "0:00:05"]

1. e4 {[%clk 0:03:00]}  c6 {[%clk 0:02:59]} 2. Ne2 {[%clk 0:03:00]}  d5 {[%clk 0:03:00]} 3. e5 {[%clk 0:03:00]}  c5 {[%clk 0:03:00]} 4. d4 {[%clk 0:03:00]}  cxd4 {[%clk 0:03:00]} 5. Nxd4 {[%clk 0:03:00]}  Nc6 {[%clk 0:03:00]} 6. Bb5 {[%clk 0:02:57]}  Bd7 {[%clk 0:02:57]} 7. e6 {[%clk 0:02:55]}  fxe6 {[%clk 0:02:57]} 8. Bxc6 {[%clk 0:02:55]}  bxc6 {[%clk 0:02:57]} 9. O-O {[%clk 0:02:55]}  e5 {[%clk 0:02:52]} 10. Nf3 {[%clk 0:02:55]}  Qc7 {[%clk 0:02:52]} 11. Re1 {[%clk 0:02:55]}  e6 {[%clk 0:02:48]} 12. Nxe5 {[%clk 0:02:52]}  Nf6 {[%clk 0:02:46]} 13. Bf4 {[%clk 0:02:44]}  Bd6 {[%clk 0:02:45]} 14. Nxd7 {[%clk 0:02:42]}  Qxd7 {[%clk 0:02:46]} 15. Bxd6 {[%clk 0:02:39]}  Qxd6 {[%clk 0:02:46]} 16. Nc3 {[%clk 0:02:36]}  O-O {[%clk 0:02:46]} 17. Qe2 {[%clk 0:02:35]}  Rae8 {[%clk 0:02:41]} 18. Rad1 {[%clk 0:02:34]}  e5 {[%clk 0:02:40]} 19. a3 {[%clk 0:02:17]}  Qc5 {[%clk 0:02:32]} 20. Na4 {[%clk 0:02:03]}  Qa5 {[%clk 0:02:20]} 21. Nc3 {[%clk 0:02:01]}  Qb6 {[%clk 0:02:09]} 22. Na4 {[%clk 0:01:58]}  Qa5 {[%clk 0:02:08]} 23. Nc3 {[%clk 0:01:58]}  Qb6 {[%clk 0:02:08]} 24. b4 {[%clk 0:01:48]}  e4 {[%clk 0:00:59]} 25. Na4 {[%clk 0:01:41]}  Qc7 {[%clk 0:00:57]} 26. Nc5 {[%clk 0:01:27]}  Qf4 {[%clk 0:00:51]} 27. Qe3 {[%clk 0:01:22]}  Qf5 {[%clk 0:00:50]} 28. h3 {[%clk 0:01:19]}  Nh5 {[%clk 0:00:29]} 29. Qe2 {[%clk 0:00:42]}  Nf4 {[%clk 0:00:26]} 30. Qg4 {[%clk 0:00:41]}  Qxg4 {[%clk 0:00:18]} 31. hxg4 {[%clk 0:00:41]}  Rf6 {[%clk 0:00:16]} 32. f3 {[%clk 0:00:35]}  e3 {[%clk 0:00:17]} 33. g3 {[%clk 0:00:22]}  Nh3+ {[%clk 0:00:11]} 34. Kg2 {[%clk 0:00:22]}  Nf2 {[%clk 0:00:12]} 35. Rd4 {[%clk 0:00:20]}  Ref8 {[%clk 0:00:10]} 36. Rxe3 {[%clk 0:00:17]}  Nxg4 {[%clk 0:00:07]} 37. Rxg4 {[%clk 0:00:17]}  g6 {[%clk 0:00:05]} 38. Nd7 {[%clk 0:00:16]} 1-0


[Site "https://www.chess.com"]

[Event "Titled Tuesday Blitz January 03 Late 2023"]
[White "Hoffmann, Asa"]
[Black "Schill, William"]
[WhiteFideId "2001470"]
[BlackFideId "2016710"]
[WhiteElo "2185"]
[BlackElo "2147"]
[Result "1-0"]
[Round "03"]
[TimeControl "180+2"]
[Date "2023.01.03"]
[WhiteClock "0:00:16"]
[BlackClock "0:00:03"]

1. d4 {[%clk 0:01:52]}  Nf6 {[%clk 0:02:58]} 2. Bg5 {[%clk 0:01:49]}  e6 {[%clk 0:02:57]} 3. Nd2 {[%clk 0:01:49]}  c5 {[%clk 0:02:50]} 4. e3 {[%clk 0:01:49]}  h6 {[%clk 0:02:46]} 5. Bh4 {[%clk 0:01:48]}  Nc6 {[%clk 0:02:44]} 6. c3 {[%clk 0:01:48]}  d5 {[%clk 0:02:26]} 7. Bd3 {[%clk 0:01:48]}  Be7 {[%clk 0:02:23]} 8. f4 {[%clk 0:01:47]}  Qb6 {[%clk 0:02:01]} 9. Rb1 {[%clk 0:01:47]}  Bd7 {[%clk 0:01:47]} 10. Ngf3 {[%clk 0:01:46]}  Ng4 {[%clk 0:01:46]} 11. Qe2 {[%clk 0:01:39]}  Bxh4+ {[%clk 0:01:25]} 12. Nxh4 {[%clk 0:01:38]}  Nf6 {[%clk 0:01:26]} 13. Nhf3 {[%clk 0:01:34]}  Qc7 {[%clk 0:01:12]} 14. O-O {[%clk 0:01:32]}  cxd4 {[%clk 0:01:11]} 15. cxd4 {[%clk 0:01:31]}  O-O {[%clk 0:01:00]} 16. Rbc1 {[%clk 0:01:30]}  Qd6 {[%clk 0:00:59]} 17. Ne5 {[%clk 0:01:29]}  Rac8 {[%clk 0:00:55]} 18. a3 {[%clk 0:01:28]}  Ne7 {[%clk 0:00:52]} 19. Ndf3 {[%clk 0:01:22]}  Rxc1 {[%clk 0:00:51]} 20. Rxc1 {[%clk 0:01:21]}  Rc8 {[%clk 0:00:51]} 21. Rf1 {[%clk 0:01:14]}  Ne4 {[%clk 0:00:47]} 22. Bxe4 {[%clk 0:00:59]}  dxe4 {[%clk 0:00:46]} 23. Ne1 {[%clk 0:00:52]}  f5 {[%clk 0:00:40]} 24. h3 {[%clk 0:00:49]}  a6 {[%clk 0:00:38]} 25. Qh5 {[%clk 0:00:45]}  Be8 {[%clk 0:00:34]} 26. Qh4 {[%clk 0:00:42]}  Nd5 {[%clk 0:00:31]} 27. Qf2 {[%clk 0:00:38]}  Rc1 {[%clk 0:00:30]} 28. g4 {[%clk 0:00:37]}  Qc7 {[%clk 0:00:22]} 29. Ng2 {[%clk 0:00:36]}  Rxf1+ {[%clk 0:00:20]} 30. Qxf1 {[%clk 0:00:36]}  Qc2 {[%clk 0:00:19]} 31. Qf2 {[%clk 0:00:33]}  Qxf2+ {[%clk 0:00:17]} 32. Kxf2 {[%clk 0:00:33]}  Kf8 {[%clk 0:00:16]} 33. Ne1 {[%clk 0:00:29]}  Ke7 {[%clk 0:00:15]} 34. Nc2 {[%clk 0:00:29]}  Kd6 {[%clk 0:00:14]} 35. Ke2 {[%clk 0:00:28]}  a5 {[%clk 0:00:13]} 36. b4 {[%clk 0:00:27]}  axb4 {[%clk 0:00:12]} 37. axb4 {[%clk 0:00:26]}  b6 {[%clk 0:00:12]} 38. Kd2 {[%clk 0:00:24]}  Bb5 {[%clk 0:00:12]} 39. Na3 {[%clk 0:00:24]}  Bf1 {[%clk 0:00:11]} 40. gxf5 {[%clk 0:00:22]}  exf5 {[%clk 0:00:11]} 41. h4 {[%clk 0:00:22]}  Ba6 {[%clk 0:00:07]} 42. b5 {[%clk 0:00:21]}  Bc8 {[%clk 0:00:06]} 43. Nac4+ {[%clk 0:00:21]}  Ke6 {[%clk 0:00:05]} 44. Nc6 {[%clk 0:00:20]}  Bd7 {[%clk 0:00:03]} 45. Na7 {[%clk 0:00:16]} 1-0


[Site "https://www.chess.com"]

[Event "Titled Tuesday Blitz January 03 Late 2023"]
[White "Aung Thant Zin"]
[Black "Melikhov, Evgeny V."]
[WhiteFideId "13000063"]
[BlackFideId "4122046"]
[WhiteElo "2268"]
[BlackElo "2269"]
[Result "0-1"]
[Round "03"]
[TimeControl "180+2"]
[Date "2023.01.03"]
[WhiteClock "0:00:21"]
[BlackClock "0:00:06"]

1. e4 {[%clk 0:02:55]}  c5 {[%clk 0:02:59]} 2. Nf3 {[%clk 0:02:55]}  d6 {[%clk 0:02:59]} 3. Bb5+ {[%clk 0:02:55]}  Nd7 {[%clk 0:02:58]} 4. O-O {[%clk 0:02:55]}  a6 {[%clk 0:02:57]} 5. Bxd7+ {[%clk 0:02:54]}  Bxd7 {[%clk 0:02:57]} 6. h3 {[%clk 0:02:54]}  Nf6 {[%clk 0:02:55]} 7. Re1 {[%clk 0:02:54]}  Bc6 {[%clk 0:02:48]} 8. d4 {[%clk 0:02:47]}  cxd4 {[%clk 0:02:47]} 9. Nxd4 {[%clk 0:02:46]}  Bxe4 {[%clk 0:02:35]} 10. Bg5 {[%clk 0:02:46]}  Bc6 {[%clk 0:02:28]} 11. Bxf6 {[%clk 0:02:45]}  gxf6 {[%clk 0:02:28]} 12. Nf5 {[%clk 0:02:29]}  e6 {[%clk 0:02:18]} 13. c4 {[%clk 0:02:17]}  Qc7 {[%clk 0:02:17]} 14. Nc3 {[%clk 0:02:09]}  O-O-O {[%clk 0:02:12]} 15. Nd4 {[%clk 0:02:08]}  Rg8 {[%clk 0:02:07]} 16. f3 {[%clk 0:02:07]}  d5 {[%clk 0:01:59]} 17. Nxc6 {[%clk 0:02:00]}  Qxc6 {[%clk 0:01:55]} 18. cxd5 {[%clk 0:01:59]}  exd5 {[%clk 0:01:55]} 19. Rc1 {[%clk 0:01:51]}  Kb8 {[%clk 0:01:49]} 20. Kh1 {[%clk 0:01:50]}  Qd6 {[%clk 0:01:41]} 21. Re2 {[%clk 0:01:38]}  Qg3 {[%clk 0:01:37]} 22. Rcc2 {[%clk 0:01:20]}  Bd6 {[%clk 0:01:36]} 23. Qg1 {[%clk 0:01:19]}  Bf4 {[%clk 0:01:07]} 24. Re1 {[%clk 0:01:09]}  Be5 {[%clk 0:01:02]} 25. Ne2 {[%clk 0:01:05]}  Qh4 {[%clk 0:00:57]} 26. Rec1 {[%clk 0:00:54]}  d4 {[%clk 0:00:55]} 27. Rc4 {[%clk 0:00:51]}  Rd7 {[%clk 0:00:46]} 28. Rd1 {[%clk 0:00:50]}  Rgd8 {[%clk 0:00:45]} 29. Nc1 {[%clk 0:00:43]}  Qg3 {[%clk 0:00:40]} 30. Nd3 {[%clk 0:00:42]}  Rc8 {[%clk 0:00:31]} 31. Rxc8+ {[%clk 0:00:41]}  Kxc8 {[%clk 0:00:31]} 32. Re1 {[%clk 0:00:41]}  Kb8 {[%clk 0:00:26]} 33. Re4 {[%clk 0:00:40]}  Rc7 {[%clk 0:00:24]} 34. Rg4 {[%clk 0:00:39]}  Rc2 {[%clk 0:00:18]} 35. Rxg3 {[%clk 0:00:37]}  Bxg3 {[%clk 0:00:19]} 36. Qd1 {[%clk 0:00:32]}  Rc6 {[%clk 0:00:14]} 37. f4 {[%clk 0:00:32]}  Re6 {[%clk 0:00:12]} 38. Qf3 {[%clk 0:00:31]}  Re3 {[%clk 0:00:12]} 39. Qf1 {[%clk 0:00:31]}  f5 {[%clk 0:00:11]} 40. Qd1 {[%clk 0:00:30]}  Ka8 {[%clk 0:00:08]} 41. Kg1 {[%clk 0:00:27]}  Kb8 {[%clk 0:00:08]} 42. Nf2 {[%clk 0:00:27]}  d3 {[%clk 0:00:04]} 43. Nxd3 {[%clk 0:00:26]}  Ka8 {[%clk 0:00:03]} 44. Nc5 {[%clk 0:00:22]}  Re1+ {[%clk 0:00:03]} 45. Qxe1 {[%clk 0:00:23]}  Bxe1 {[%clk 0:00:03]} 46. Kf1 {[%clk 0:00:23]}  Bd2 {[%clk 0:00:03]} 47. g3 {[%clk 0:00:23]}  Be3 {[%clk 0:00:04]} 48. Nd3 {[%clk 0:00:23]}  Bd4 {[%clk 0:00:04]} 49. Ke2 {[%clk 0:00:23]}  b5 {[%clk 0:00:04]} 50. b3 {[%clk 0:00:23]}  Kb7 {[%clk 0:00:04]} 51. Nb4 {[%clk 0:00:24]}  Kb6 {[%clk 0:00:03]} 52. Nd5+ {[%clk 0:00:24]}  Kc5 {[%clk 0:00:03]} 53. Ne7 {[%clk 0:00:25]}  Kb4 {[%clk 0:00:01]} 54. Nxf5 {[%clk 0:00:26]}  Bc5 {[%clk 0:00:01]} 55. Nh6 {[%clk 0:00:23]}  Ka3 {[%clk 0:00:01]} 56. Nxf7 {[%clk 0:00:24]}  Kxa2 {[%clk 0:00:02]} 57. Kd3 {[%clk 0:00:24]}  Kxb3 {[%clk 0:00:02]} 58. Ne5 {[%clk 0:00:25]}  a5 {[%clk 0:00:02]} 59. Kd2 {[%clk 0:00:25]}  a4 {[%clk 0:00:02]} 60. Nd3 {[%clk 0:00:25]}  Bd4 {[%clk 0:00:02]} 61. Nc1+ {[%clk 0:00:24]}  Kb2 {[%clk 0:00:02]} 62. Nd3+ {[%clk 0:00:24]}  Kb1 {[%clk 0:00:02]} 63. Nb4 {[%clk 0:00:23]}  a3 {[%clk 0:00:03]} 64. Kd3 {[%clk 0:00:23]}  Bf6 {[%clk 0:00:01]} 65. g4 {[%clk 0:00:23]}  a2 {[%clk 0:00:02]} 66. Nxa2 {[%clk 0:00:23]}  Kxa2 {[%clk 0:00:02]} 67. g5 {[%clk 0:00:24]}  Bb2 {[%clk 0:00:01]} 68. f5 {[%clk 0:00:25]}  b4 {[%clk 0:00:02]} 69. h4 {[%clk 0:00:24]}  b3 {[%clk 0:00:02]} 70. h5 {[%clk 0:00:25]}  Be5 {[%clk 0:00:01]} 71. f6 {[%clk 0:00:25]}  b2 {[%clk 0:00:01]} 72. Ke4 {[%clk 0:00:25]}  Bxf6 {[%clk 0:00:01]} 73. gxf6 {[%clk 0:00:25]}  b1=Q+ {[%clk 0:00:02]} 74. Ke5 {[%clk 0:00:26]}  Qb8+ {[%clk 0:00:02]} 75. Ke6 {[%clk 0:00:26]}  Qf8 {[%clk 0:00:03]} 76. f7 {[%clk 0:00:26]}  Kb3 {[%clk 0:00:03]} 77. h6 {[%clk 0:00:26]}  Kc4 {[%clk 0:00:03]} 78. Kf6 {[%clk 0:00:25]}  Kd5 {[%clk 0:00:03]} 79. Kf5 {[%clk 0:00:24]}  Qxf7+ {[%clk 0:00:04]} 80. Kg5 {[%clk 0:00:22]}  Qg6+ {[%clk 0:00:05]} 81. Kf4 {[%clk 0:00:22]}  Qxh6+ {[%clk 0:00:05]} 82. Kf3 {[%clk 0:00:21]}  Qg6 {[%clk 0:00:06]} 0-1


[Site "https://www.chess.com"]

[Event "Titled Tuesday Blitz January 03 Late 2023"]
[White "Vargas, Mauricio"]
[Black "Kaganskiy, Gleb"]
[WhiteFideId "4404572"]
[BlackFideId "4132025"]
[WhiteElo "2035"]
[BlackElo "2205"]
[Result "0-1"]
[Round "03"]
[TimeControl "180+2"]
[Date "2023.01.03"]
[WhiteClock "0:00:04"]
[BlackClock "0:02:08"]

1. e4 {[%clk 0:03:00]}  e6 {[%clk 0:02:55]} 2. f4 {[%clk 0:02:59]}  d5 {[%clk 0:02:53]} 3. e5 {[%clk 0:03:00]}  c5 {[%clk 0:02:53]} 4. Nf3 {[%clk 0:03:01]}  Nc6 {[%clk 0:02:53]} 5. Bb5 {[%clk 0:03:02]}  Bd7 {[%clk 0:02:53]} 6. Bxc6 {[%clk 0:03:02]}  Bxc6 {[%clk 0:02:54]} 7. O-O {[%clk 0:03:02]}  d4 {[%clk 0:02:54]} 8. d3 {[%clk 0:03:02]}  Ne7 {[%clk 0:02:54]} 9. Nbd2 {[%clk 0:03:01]}  h5 {[%clk 0:02:53]} 10. Qe1 {[%clk 0:03:00]}  Nf5 {[%clk 0:02:53]} 11. Ne4 {[%clk 0:02:59]}  Be7 {[%clk 0:02:52]} 12. h4 {[%clk 0:02:45]}  Qc7 {[%clk 0:02:51]} 13. Nfg5 {[%clk 0:02:41]}  a5 {[%clk 0:02:35]} 14. Bd2 {[%clk 0:02:39]}  a4 {[%clk 0:02:34]} 15. a3 {[%clk 0:02:38]}  b5 {[%clk 0:02:31]} 16. Rc1 {[%clk 0:02:23]}  Bd5 {[%clk 0:02:31]} 17. Kh2 {[%clk 0:02:02]}  f6 {[%clk 0:02:24]} 18. exf6 {[%clk 0:01:54]}  gxf6 {[%clk 0:02:24]} 19. Nxe6 {[%clk 0:01:17]}  Bxe6 {[%clk 0:02:19]} 20. Nxf6+ {[%clk 0:01:16]}  Kf7 {[%clk 0:02:15]} 21. Ne4 {[%clk 0:00:51]}  Rag8 {[%clk 0:02:15]} 22. Ng5+ {[%clk 0:00:33]}  Bxg5 {[%clk 0:02:13]} 23. hxg5 {[%clk 0:00:19]}  Rxg5 {[%clk 0:02:13]} 24. Kg1 {[%clk 0:00:06]}  Rg4 {[%clk 0:02:09]} 25. Rf2 {[%clk 0:00:04]}  Rhg8 {[%clk 0:02:08]} 0-1


[Site "https://www.chess.com"]

[Event "Titled Tuesday Blitz January 03 Late 2023"]
[White "Nakamura, Hikaru"]
[Black "Makarian, Rudik"]
[WhiteFideId "2016192"]
[BlackFideId "44105681"]
[WhiteElo "2775"]
[BlackElo "2545"]
[Result "1-0"]
[Round "04"]
[TimeControl "180+2"]
[Date "2023.01.03"]
[WhiteClock "0:00:58"]
[BlackClock "0:00:08"]

1. Nf3 {[%clk 0:03:00]}  Nf6 {[%clk 0:03:00]} 2. g3 {[%clk 0:03:00]}  b5 {[%clk 0:03:00]} 3. e4 {[%clk 0:02:56]}  Nxe4 {[%clk 0:02:56]} 4. Bxb5 {[%clk 0:02:56]}  Bb7 {[%clk 0:02:56]} 5. d4 {[%clk 0:02:54]}  e6 {[%clk 0:02:56]} 6. O-O {[%clk 0:02:54]}  Be7 {[%clk 0:02:55]} 7. Bd3 {[%clk 0:02:53]}  h5 {[%clk 0:02:46]} 8. c4 {[%clk 0:02:49]}  h4 {[%clk 0:02:42]} 9. Re1 {[%clk 0:02:48]}  f5 {[%clk 0:02:26]} 10. Nbd2 {[%clk 0:02:35]}  hxg3 {[%clk 0:02:25]} 11. fxg3 {[%clk 0:02:34]}  Ng5 {[%clk 0:02:11]} 12. Nxg5 {[%clk 0:02:29]}  Bxg5 {[%clk 0:02:11]} 13. d5 {[%clk 0:02:29]}  Qf6 {[%clk 0:02:01]} 14. Nf3 {[%clk 0:02:27]}  Bxc1 {[%clk 0:02:00]} 15. Rxc1 {[%clk 0:02:26]}  Kd8 {[%clk 0:01:15]} 16. dxe6 {[%clk 0:01:51]}  Kc8 {[%clk 0:01:14]} 17. exd7+ {[%clk 0:01:42]}  Nxd7 {[%clk 0:01:15]} 18. c5 {[%clk 0:01:42]}  Nb8 {[%clk 0:00:25]} 19. c6 {[%clk 0:01:07]}  Nxc6 {[%clk 0:00:25]} 20. Qc2 {[%clk 0:01:03]}  Kb8 {[%clk 0:00:25]} 21. Bb5 {[%clk 0:01:02]}  Rh6 {[%clk 0:00:08]} 22. Re8+ {[%clk 0:00:58]} 1-0


[Site "https://www.chess.com"]

[Event "Titled Tuesday Blitz January 03 Late 2023"]
[White "Tang, Andrew"]
[Black "Carlsen, Magnus"]
[WhiteFideId "2059630"]
[BlackFideId "1503014"]
[WhiteElo "2523"]
[BlackElo "2853"]
[Result "1/2-1/2"]
[Round "04"]
[TimeControl "180+2"]
[Date "2023.01.03"]
[WhiteClock "0:00:09"]
[BlackClock "0:00:14"]

1. d4 {[%clk 0:02:52]}  d5 {[%clk 0:02:55]} 2. Bf4 {[%clk 0:02:44]}  c5 {[%clk 0:02:55]} 3. e3 {[%clk 0:02:45]}  cxd4 {[%clk 0:02:55]} 4. exd4 {[%clk 0:02:45]}  Nc6 {[%clk 0:02:55]} 5. Nf3 {[%clk 0:02:45]}  Bf5 {[%clk 0:02:42]} 6. Nbd2 {[%clk 0:02:38]}  e6 {[%clk 0:02:32]} 7. c3 {[%clk 0:02:38]}  h6 {[%clk 0:02:29]} 8. Qb3 {[%clk 0:02:28]}  Qc8 {[%clk 0:02:29]} 9. Ne5 {[%clk 0:02:00]}  Nge7 {[%clk 0:02:19]} 10. Be2 {[%clk 0:01:49]}  Nxe5 {[%clk 0:02:17]} 11. Bxe5 {[%clk 0:01:49]}  Nc6 {[%clk 0:02:16]} 12. Nf3 {[%clk 0:01:11]}  Nxe5 {[%clk 0:02:07]} 13. Nxe5 {[%clk 0:01:12]}  Bd6 {[%clk 0:02:06]} 14. Bb5+ {[%clk 0:00:58]}  Ke7 {[%clk 0:02:06]} 15. Bd3 {[%clk 0:00:50]}  Bxe5 {[%clk 0:01:24]} 16. Bxf5 {[%clk 0:00:50]}  Bd6 {[%clk 0:01:25]} 17. Bd3 {[%clk 0:00:47]}  h5 {[%clk 0:01:24]} 18. O-O {[%clk 0:00:41]}  Qc7 {[%clk 0:01:23]} 19. g3 {[%clk 0:00:33]}  h4 {[%clk 0:01:23]} 20. Kg2 {[%clk 0:00:33]}  g6 {[%clk 0:01:08]} 21. Rae1 {[%clk 0:00:33]}  Kf6 {[%clk 0:01:07]} 22. Qd1 {[%clk 0:00:31]}  Rh5 {[%clk 0:00:54]} 23. Qg4 {[%clk 0:00:28]}  Rah8 {[%clk 0:00:48]} 24. Re3 {[%clk 0:00:19]}  Qe7 {[%clk 0:00:24]} 25. Rfe1 {[%clk 0:00:16]}  hxg3 {[%clk 0:00:22]} 26. hxg3 {[%clk 0:00:16]}  Rh2+ {[%clk 0:00:19]} 27. Kf1 {[%clk 0:00:14]}  Kg7 {[%clk 0:00:12]} 28. Bxg6 {[%clk 0:00:10]}  Rh1+ {[%clk 0:00:11]} 29. Ke2 {[%clk 0:00:06]}  Rxe1+ {[%clk 0:00:09]} 30. Kxe1 {[%clk 0:00:07]}  Rh6 {[%clk 0:00:03]} 31. Bd3+ {[%clk 0:00:04]}  Kf8 {[%clk 0:00:03]} 32. Kd2 {[%clk 0:00:02]}  Qf6 {[%clk 0:00:02]} 33. Qe2 {[%clk 0:00:02]}  Rh2 {[%clk 0:00:01]} 34. Rf3 {[%clk 0:00:03]}  Qh6+ {[%clk 0:00:02]} 35. Kc2 {[%clk 0:00:03]}  Ke7 {[%clk 0:00:02]} 36. a4 {[%clk 0:00:04]}  a6 {[%clk 0:00:03]} 37. Kb1 {[%clk 0:00:04]}  Qg5 {[%clk 0:00:03]} 38. Ka2 {[%clk 0:00:04]}  Qc1 {[%clk 0:00:03]} 39. Qc2 {[%clk 0:00:03]}  Qxc2 {[%clk 0:00:03]} 40. Bxc2 {[%clk 0:00:03]}  Rh1 {[%clk 0:00:03]} 41. Bd3 {[%clk 0:00:03]}  Re1 {[%clk 0:00:04]} 42. Kb3 {[%clk 0:00:03]}  Rd1 {[%clk 0:00:05]} 43. Kc2 {[%clk 0:00:04]}  Ra1 {[%clk 0:00:05]} 44. Kb3 {[%clk 0:00:03]}  Rd1 {[%clk 0:00:06]} 45. Re3 {[%clk 0:00:03]}  Rd2 {[%clk 0:00:06]} 46. Be2 {[%clk 0:00:04]}  f5 {[%clk 0:00:04]} 47. Bf3 {[%clk 0:00:03]}  Kf6 {[%clk 0:00:04]} 48. Re2 {[%clk 0:00:02]}  Rxe2 {[%clk 0:00:04]} 49. Bxe2 {[%clk 0:00:03]}  a5 {[%clk 0:00:05]} 50. Kc2 {[%clk 0:00:03]}  b6 {[%clk 0:00:05]} 51. Kd3 {[%clk 0:00:03]}  Bf8 {[%clk 0:00:03]} 52. b3 {[%clk 0:00:04]}  Ba3 {[%clk 0:00:03]} 53. Bf3 {[%clk 0:00:04]}  Bf8 {[%clk 0:00:03]} 54. c4 {[%clk 0:00:05]}  dxc4+ {[%clk 0:00:03]} 55. bxc4 {[%clk 0:00:03]}  e5 {[%clk 0:00:03]} 56. dxe5+ {[%clk 0:00:01]}  Kxe5 {[%clk 0:00:04]} 57. Bg2 {[%clk 0:00:02]}  Bc5 {[%clk 0:00:04]} 58. Ke2 {[%clk 0:00:02]}  Kd4 {[%clk 0:00:03]} 59. Bd5 {[%clk 0:00:02]}  Ke5 {[%clk 0:00:01]} 60. Bc6 {[%clk 0:00:02]}  Kf6 {[%clk 0:00:02]} 61. Bb5 {[%clk 0:00:03]}  Bd6 {[%clk 0:00:02]} 62. Kf3 {[%clk 0:00:03]}  Bc5 {[%clk 0:00:03]} 63. Kg2 {[%clk 0:00:04]}  Bd6 {[%clk 0:00:04]} 64. f4 {[%clk 0:00:03]}  Bc5 {[%clk 0:00:05]} 65. Kf3 {[%clk 0:00:04]}  Bd6 {[%clk 0:00:05]} 66. Bd7 {[%clk 0:00:04]}  Bc5 {[%clk 0:00:06]} 67. Bc8 {[%clk 0:00:05]}  Bd6 {[%clk 0:00:06]} 68. g4 {[%clk 0:00:05]}  fxg4+ {[%clk 0:00:07]} 69. Kxg4 {[%clk 0:00:06]}  Bc5 {[%clk 0:00:07]} 70. Kf3 {[%clk 0:00:06]}  Bd6 {[%clk 0:00:08]} 71. Ke4 {[%clk 0:00:07]}  Bc5 {[%clk 0:00:09]} 72. Kd5 {[%clk 0:00:07]}  Bb4 {[%clk 0:00:09]} 73. f5 {[%clk 0:00:06]}  Bc5 {[%clk 0:00:10]} 74. Kc6 {[%clk 0:00:06]}  Bd4 {[%clk 0:00:10]} 75. Be6 {[%clk 0:00:07]}  Bc5 {[%clk 0:00:11]} 76. Kb5 {[%clk 0:00:07]}  Bd4 {[%clk 0:00:12]} 77. Kc6 {[%clk 0:00:08]}  Bc5 {[%clk 0:00:12]} 78. Kd5 {[%clk 0:00:09]}  Bb4 {[%clk 0:00:13]} 79. Kc6 {[%clk 0:00:09]}  Bc5 {[%clk 0:00:14]} 1/2-1/2


[Site "https://www.chess.com"]

[Event "Titled Tuesday Blitz January 03 Late 2023"]
[White "Vachier-Lagrave, Maxime"]
[Black "Ibarra Jerez, Jose Carlos"]
[WhiteFideId "623539"]
[BlackFideId "2226332"]
[WhiteElo "2742"]
[BlackElo "2563"]
[Result "1-0"]
[Round "04"]
[TimeControl "180+2"]
[Date "2023.01.03"]
[WhiteClock "0:00:08"]
[BlackClock "0:00:05"]

1. e4 {[%clk 0:02:57]}  c5 {[%clk 0:02:59]} 2. Nf3 {[%clk 0:02:56]}  Nc6 {[%clk 0:02:59]} 3. Bb5 {[%clk 0:02:54]}  e6 {[%clk 0:02:59]} 4. O-O {[%clk 0:02:51]}  Nge7 {[%clk 0:02:57]} 5. Re1 {[%clk 0:02:51]}  Nd4 {[%clk 0:02:57]} 6. Bf1 {[%clk 0:02:48]}  Nec6 {[%clk 0:02:54]} 7. c3 {[%clk 0:02:44]}  Nxf3+ {[%clk 0:02:54]} 8. Qxf3 {[%clk 0:02:45]}  Be7 {[%clk 0:02:48]} 9. Na3 {[%clk 0:02:41]}  O-O {[%clk 0:02:46]} 10. d3 {[%clk 0:02:36]}  d5 {[%clk 0:02:43]} 11. Nc2 {[%clk 0:02:31]}  Bf6 {[%clk 0:02:37]} 12. Bf4 {[%clk 0:02:22]}  g6 {[%clk 0:02:26]} 13. e5 {[%clk 0:02:15]}  Bg7 {[%clk 0:02:26]} 14. d4 {[%clk 0:02:13]}  cxd4 {[%clk 0:02:25]} 15. cxd4 {[%clk 0:02:14]}  Bd7 {[%clk 0:02:25]} 16. Qe3 {[%clk 0:02:12]}  Qb6 {[%clk 0:02:23]} 17. b3 {[%clk 0:02:08]}  Rac8 {[%clk 0:02:22]} 18. Rac1 {[%clk 0:02:05]}  Nb4 {[%clk 0:02:16]} 19. Nxb4 {[%clk 0:02:03]}  Qxb4 {[%clk 0:02:17]} 20. h4 {[%clk 0:01:55]}  Qa3 {[%clk 0:02:00]} 21. h5 {[%clk 0:01:51]}  Qxa2 {[%clk 0:01:48]} 22. h6 {[%clk 0:01:51]}  Bh8 {[%clk 0:01:47]} 23. Bg5 {[%clk 0:01:49]}  Qa3 {[%clk 0:01:35]} 24. Qf4 {[%clk 0:01:20]}  Rxc1 {[%clk 0:01:22]} 25. Rxc1 {[%clk 0:01:21]}  Rc8 {[%clk 0:01:18]} 26. Rxc8+ {[%clk 0:01:20]}  Bxc8 {[%clk 0:01:19]} 27. Qh4 {[%clk 0:01:17]}  Qf8 {[%clk 0:01:12]} 28. Be7 {[%clk 0:00:47]}  Qe8 {[%clk 0:01:12]} 29. Bf6 {[%clk 0:00:40]}  Bxf6 {[%clk 0:01:12]} 30. Qxf6 {[%clk 0:00:41]}  Qf8 {[%clk 0:01:12]} 31. Qg5 {[%clk 0:00:39]}  Bd7 {[%clk 0:01:09]} 32. b4 {[%clk 0:00:35]}  f6 {[%clk 0:01:08]} 33. exf6 {[%clk 0:00:35]}  Qd6 {[%clk 0:00:59]} 34. b5 {[%clk 0:00:30]}  a5 {[%clk 0:00:56]} 35. bxa6 {[%clk 0:00:27]}  bxa6 {[%clk 0:00:56]} 36. Bd3 {[%clk 0:00:27]}  Kf7 {[%clk 0:00:56]} 37. Bxg6+ {[%clk 0:00:15]}  hxg6 {[%clk 0:00:56]} 38. h7 {[%clk 0:00:15]}  Qf8 {[%clk 0:00:56]} 39. Qf4 {[%clk 0:00:16]}  Qc8 {[%clk 0:00:31]} 40. g3 {[%clk 0:00:09]}  Qh8 {[%clk 0:00:15]} 41. Qd6 {[%clk 0:00:08]}  Qxh7 {[%clk 0:00:05]} 42. Qxd7+ {[%clk 0:00:08]}  Kg8 {[%clk 0:00:05]} 43. Qe8# {[%clk 0:00:08]} 1-0


[Site "https://www.chess.com"]

[Event "Titled Tuesday Blitz January 03 Late 2023"]
[White "Naroditsky, Daniel"]
[Black "Babazada, Khazar"]
[WhiteFideId "2026961"]
[BlackFideId "13413554"]
[WhiteElo "2618"]
[BlackElo "2474"]
[Result "1-0"]
[Round "04"]
[TimeControl "180+2"]
[Date "2023.01.03"]
[WhiteClock "0:01:26"]
[BlackClock "0:01:08"]

1. e4 {[%clk 0:03:00]}  c6 {[%clk 0:02:57]} 2. d4 {[%clk 0:02:56]}  d5 {[%clk 0:02:58]} 3. e5 {[%clk 0:02:57]}  c5 {[%clk 0:02:58]} 4. Nf3 {[%clk 0:02:56]}  Nc6 {[%clk 0:02:58]} 5. dxc5 {[%clk 0:02:55]}  Bg4 {[%clk 0:02:56]} 6. c3 {[%clk 0:02:54]}  e6 {[%clk 0:02:54]} 7. Be3 {[%clk 0:02:41]}  Nge7 {[%clk 0:02:53]} 8. Nbd2 {[%clk 0:02:40]}  Nf5 {[%clk 0:02:49]} 9. Bd4 {[%clk 0:02:40]}  Be7 {[%clk 0:02:24]} 10. h3 {[%clk 0:02:36]}  Bxf3 {[%clk 0:02:23]} 11. Nxf3 {[%clk 0:02:37]}  O-O {[%clk 0:02:07]} 12. Bd3 {[%clk 0:02:35]}  Nfxd4 {[%clk 0:02:06]} 13. cxd4 {[%clk 0:02:36]}  f6 {[%clk 0:02:06]} 14. exf6 {[%clk 0:02:29]}  Bxf6 {[%clk 0:02:06]} 15. O-O {[%clk 0:02:30]}  g6 {[%clk 0:02:01]} 16. Bc2 {[%clk 0:02:28]}  Bg7 {[%clk 0:01:58]} 17. Ba4 {[%clk 0:02:25]}  Ne7 {[%clk 0:01:49]} 18. Re1 {[%clk 0:02:25]}  Rxf3 {[%clk 0:01:28]} 19. Qxf3 {[%clk 0:02:21]}  Nf5 {[%clk 0:01:29]} 20. Rad1 {[%clk 0:02:13]}  Qh4 {[%clk 0:01:21]} 21. Rxe6 {[%clk 0:01:45]}  Nxd4 {[%clk 0:01:20]} 22. Re8+ {[%clk 0:01:29]}  Rxe8 {[%clk 0:01:20]} 23. Qxd5+ {[%clk 0:01:30]}  Re6 {[%clk 0:01:16]} 24. Bd7 {[%clk 0:01:29]}  Qe7 {[%clk 0:01:08]} 25. Rxd4 {[%clk 0:01:26]} 1-0


[Site "https://www.chess.com"]